fUSD/lending_fUSD_20250506
["ID","MTS","AMOUNT","RATE_DAILY","PERIOD"]
[360085486,1746544246157,-150.0,0.00019903,2]
[360085488,1746544246166,-150.0,0.00019939,2]
[360085490,1746544246176,-150.0,0.00019955,2]
[360085492,1746544246185,-150.0,0.00019955,2]
[360085494,1746544246195,-150.0,0.00019964,2]
[360085496,1746544246203,-150.0,0.00019966,2]
[360085498,1746544246213,-150.0,0.00019979,2]
[360085500,1746544246222,-150.0,0.00019981,2]
[360085502,1746544246231,-150.0,0.00019986,2]
[360085504,1746544246240,-150.0,0.00019987,2]
[360085507,1746544246250,-150.0,0.00019987,2]
[360085508,1746544246259,-150.0,0.0001999,2]
[360085511,1746544246268,-150.0,0.00019994,2]
[360085512,1746544246279,-150.0,0.00019995,2]
[360085514,1746544246288,-699.22166415,0.00019999,2]
[360085517,1746544246297,-765.5,0.00019999,2]
[360085518,1746544246306,-765.5,0.00019999,2]
[360085520,1746544246316,-765.5,0.00019999,2]
[360085522,1746544246325,-765.5,0.00019999,2]
[360085524,1746544246336,-765.5,0.00019999,2]
[360085539,1746544246452,-765.5,0.00019999,2]
[360085542,1746544246478,-765.5,0.00019999,2]
[360085544,1746544246487,-765.5,0.00019999,2]
[360085546,1746544246497,-765.5,0.00019999,2]
[360085548,1746544246507,-765.5,0.00019999,2]
[360085550,1746544246516,-765.5,0.00019999,2]
[360085552,1746544246525,-765.5,0.00019999,2]
[360085554,1746544246535,-765.5,0.00019999,2]
[360085556,1746544246544,-765.5,0.00019999,2]
[360085558,1746544246554,-765.5,0.00019999,2]
[360085560,1746544246564,-765.5,0.00019999,2]
[360085562,1746544246574,-765.5,0.00019999,2]
[360085563,1746544246583,-765.5,0.00019999,2]
[360085565,1746544246593,-765.60475267,0.00019999,2]
[360085567,1746544246605,-723.14,0.00019999,2]
[360085569,1746544246614,-723.14,0.00019999,2]
[360085571,1746544246623,-723.14,0.00019999,2]
[360085573,1746544246632,-723.14,0.00019999,2]
[360085575,1746544246642,-723.14,0.00019999,2]
[360085577,1746544246652,-723.14,0.00019999,2]
[360085579,1746544246661,-723.14,0.00019999,2]
[360085581,1746544246671,-723.14,0.00019999,2]
[360085583,1746544246680,-723.14,0.00019999,2]
[360085585,1746544246690,-723.14,0.00019999,2]
[360085587,1746544246699,-2139.31,0.00019999,2]
[360085589,1746544246708,-723.14,0.00019999,2]
[360085591,1746544246717,-2139.31,0.00019999,2]
[360085593,1746544246726,-723.14,0.00019999,2]
[360085595,1746544246736,-723.14,0.00019999,2]
[360085597,1746544246745,-2139.31,0.00019999,2]
[360085599,1746544246755,-723.14,0.00019999,2]
[360085601,1746544246764,-2139.31,0.00019999,2]
[360085603,1746544246773,-723.14,0.00019999,2]
[360085605,1746544246783,-2139.31,0.00019999,2]
[360085607,1746544246792,-723.14,0.00019999,2]
[360085608,1746544246801,-2139.31,0.00019999,2]
[360085610,1746544246811,-723.14,0.00019999,2]
[360085613,1746544246821,-2139.31,0.00019999,2]
[360085614,1746544246830,-723.14,0.00019999,2]
[360085616,1746544246839,-2139.31,0.00019999,2]
[360085618,1746544246848,-723.14,0.00019999,2]
[360085620,1746544246857,-2139.31,0.00019999,2]
[360085622,1746544246866,-723.14,0.00019999,2]
[360085624,1746544246876,-2139.31,0.00019999,2]
[360085626,1746544246885,-723.35000001,0.00019999,2]
[360085628,1746544246895,-2139.31,0.00019999,2]
[360085630,1746544246904,-2139.31,0.00019999,2]
[360085632,1746544246913,-2139.31,0.00019999,2]
[360085634,1746544246922,-2139.31,0.00019999,2]
[360085636,1746544246931,-2139.31,0.00019999,2]
[360085638,1746544246940,-2139.31,0.00019999,2]
[360085640,1746544246950,-2139.31,0.00019999,2]
[360085642,1746544246959,-2139.31,0.00019999,2]
[360085644,1746544246968,-450.0,0.00019999,2]
[360085646,1746544246978,-2139.31,0.00019999,2]
[360085648,1746544246987,-450.0,0.00019999,2]
[360085650,1746544246996,-2139.31,0.00019999,2]
[360085652,1746544247005,-2139.38315392,0.00019999,2]
[360085654,1746544247014,-450.0,0.00019999,2]
[360085656,1746544247023,-450.0,0.00019999,2]
[360085658,1746544247033,-450.0,0.00019999,2]
[360085660,1746544247042,-450.0,0.00019999,2]
[360085662,1746544247051,-450.0,0.00019999,2]
[360085664,1746544247060,-450.0,0.00019999,2]
[360085666,1746544247069,-450.0,0.00019999,2]
[360085668,1746544247079,-450.0,0.00019999,2]
[360085670,1746544247088,-434.99,0.00019999,2]
[360085672,1746544247097,-6558.59,0.00019999,2]
[360085674,1746544247106,-6558.59,0.00019999,2]
[360085676,1746544247115,-6558.59,0.00019999,2]
[360085678,1746544247124,-6558.59,0.00019999,2]
[360085680,1746544247133,-6558.59,0.00019999,2]
[360085681,1746544247142,-6558.59,0.00019999,2]
[360085683,1746544247151,-6558.59,0.00019999,2]
[360085685,1746544247160,-6558.59,0.00019999,2]
[360085687,1746544247170,-151.0,0.00019999,2]
[360085689,1746544247179,-6558.59,0.00019999,2]
[360085691,1746544247188,-6558.59,0.00019999,2]
[360085693,1746544247198,-6558.59,0.00019999,2]
[360085695,1746544247207,-6558.59,0.00019999,2]
[360085697,1746544247217,-6558.59,0.00019999,2]
[360085699,1746544247225,-6558.59,0.00019999,2]
[360085701,1746544247234,-6558.59,0.00019999,2]
[360085703,1746544247243,-6558.59,0.00019999,2]
[360085705,1746544247253,-6558.59,0.00019999,2]
[360085707,1746544247262,-6558.59,0.00019999,2]
[360085709,1746544247271,-6558.59,0.00019999,2]
[360085711,1746544247280,-6558.59,0.00019999,2]
[360085713,1746544247290,-6558.59,0.00019999,2]
[360085715,1746544247299,-6558.59,0.00019999,2]
[360085717,1746544247307,-6558.6401,0.00019999,2]
[360085719,1746544247317,-450.0,0.00019999,2]
[360085721,1746544247326,-450.0,0.00019999,2]
[360085723,1746544247335,-450.0,0.00019999,2]
[360085725,1746544247344,-450.0,0.00019999,2]
[360085727,1746544247354,-450.0,0.00019999,2]
[360085729,1746544247363,-450.0,0.00019999,2]
[360085731,1746544247372,-450.0,0.00019999,2]
[360085733,1746544247380,-450.0,0.00019999,2]
[360085735,1746544247390,-450.0,0.00019999,2]
[360085737,1746544247400,-450.0,0.00019999,2]
[360085739,1746544247409,-450.0,0.00019999,2]
[360085741,1746544247418,-450.0,0.00019999,2]
[360085743,1746544247427,-450.0,0.00019999,2]
[360085745,1746544247437,-450.0,0.00019999,2]
[360085747,1746544247447,-450.0,0.00019999,2]
[360085749,1746544247456,-450.0,0.00019999,2]
[360085751,1746544247465,-393.86,0.00019999,2]
[360085753,1746544247474,-450.0,0.00019999,2]
[360085755,1746544247483,-151.0,0.00019999,2]
[360085757,1746544247492,-450.0,0.00019999,2]
[360085759,1746544247502,-450.0,0.00019999,2]
[360085761,1746544247511,-450.0,0.00019999,2]
[360085762,1746544247520,-450.0,0.00019999,2]
[360085764,1746544247529,-246.9885,0.00019999,2]
[360085766,1746544247538,-450.0,0.00019999,2]
[360085768,1746544247548,-450.0,0.00019999,2]
[360085770,1746544247557,-450.0,0.00019999,2]
[360085772,1746544247566,-450.0,0.00019999,2]
[360085774,1746544247575,-450.0,0.00019999,2]
[360085776,1746544247584,-450.0,0.00019999,2]
[360085778,1746544247593,-450.0,0.00019999,2]
[360085780,1746544247607,-303.60007145,0.00019999,2]
[360085782,1746544247617,-562.23,0.00019999,2]
[360085784,1746544247626,-226.45,0.00019999,2]
[360085786,1746544247635,-495.47,0.00019999,2]
[360085788,1746544247645,-495.47,0.00019999,2]
[360085790,1746544247655,-495.47,0.00019999,2]
[360085792,1746544247664,-495.47,0.00019999,2]
[360085794,1746544247673,-495.47,0.00019999,2]
[360085796,1746544247684,-495.47,0.00019999,2]
[360085798,1746544247694,-450.0,0.00019999,2]
[360085800,1746544247703,-495.47,0.00019999,2]
[360085802,1746544247712,-288.12836136,0.00019999,2]
[360085804,1746544247721,-495.47,0.00019999,2]
[360085806,1746544247731,-495.47,0.00019999,2]
[360085808,1746544247740,-495.47,0.00019999,2]
[360085810,1746544247749,-495.47,0.00019999,2]
[360085812,1746544247759,-495.47,0.00019999,2]
[360085813,1746544247768,-495.47,0.00019999,2]
[360085815,1746544247778,-495.47,0.00019999,2]
[360085817,1746544247787,-495.47,0.00019999,2]
[360085819,1746544247796,-495.47,0.00019999,2]
[360085821,1746544247805,-495.47,0.00019999,2]
[360085823,1746544247815,-495.47,0.00019999,2]
[360085825,1746544247825,-495.47,0.00019999,2]
[360085827,1746544247834,-495.47,0.00019999,2]
[360085829,1746544247843,-495.47,0.00019999,2]
[360085831,1746544247852,-495.47,0.00019999,2]
[360085833,1746544247862,-495.67519756,0.00019999,2]
[360085835,1746544247871,-150.0,0.00019999,2]
[360085837,1746544247881,-500.0,0.00019999,2]
[360085839,1746544247891,-1301.0,0.00019999,2]
[360085841,1746544247900,-926.0,0.00019999,2]
[360085843,1746544247908,-798.0,0.00019999,2]
[360085845,1746544247917,-663.05,0.00019999,2]
[360085847,1746544247927,-1053.355,0.00019999,2]
[360085849,1746544247937,-1452.0,0.00019999,2]
[360085851,1746544247945,-1243.0,0.00019999,2]
[360085853,1746544247955,-551.0,0.00019999,2]
[360085855,1746544247964,-859.0,0.00019999,2]
[360085857,1746544247973,-2000.0,0.0002,4]
[360085859,1746544247982,-2000.0,0.0002,4]
[360085861,1746544247991,-2000.0,0.0002,4]
[360085863,1746544248000,-2000.0,0.0002,4]
[360085865,1746544248009,-2000.0,0.0002,4]
[360085866,1746544248018,-2000.0,0.0002,4]
[360085868,1746544248027,-185938.99534305,0.0002,2]
[360085871,1746544248041,-1937.5886716,0.0002,2]
[360085873,1746544248052,-4799.58669792,0.0002,2]
[360085875,1746544248068,-18650.85226411,0.0002,2]
[360085880,1746544248101,-594.91172513,0.00019999,2]
[360085882,1746544248111,-304.58182999,0.00019999,2]
[360085884,1746544248120,-27849.00212658,0.0002,2]
[360085886,1746544248131,-4720.0,0.0002,2]
[360085888,1746544248141,-886.72,0.0002,2]
[360085890,1746544248152,-5170.600005,0.0002,2]
[360086344,1746544310681,1109.39,0.00017168,2]
[360086345,1746544310919,1109.39,0.00019432,2]
[360086346,1746544349706,200.0,0.00019011,2]
[360086347,1746544407967,1112.99027646,0.000195,2]
[360086348,1746544408756,158.7,0.0001896,2]
[360086349,1746544430891,1437.8,0.00018941,2]
[360086350,1746544461535,5459.87,0.00018896,2]
[360086351,1746544464140,250.0,0.00017,2]
[360086352,1746544465254,300.0,0.00019,2]
[360086353,1746544532292,150.0,1e-08,2]
[360086354,1746544542470,174.39,0.00015102,2]
[360086355,1746544555114,4200.0,0.00019,6]
[360086356,1746544557214,8500.0,0.000191,6]
[360086357,1746544559332,12800.0,0.000192,7]
[360086358,1746544561628,17100.0,0.000193,7]
[360086359,1746544563560,21400.0,0.000194,7]
[360086360,1746544565709,4200.0,0.000195,7]
[360086361,1746544567960,4200.0,0.000196,7]
[360086362,1746544570059,4200.0,0.000197,7]
[360086363,1746544572175,4200.0,0.000198,7]
[360086364,1746544574313,5020.0,0.000199,7]
[360086365,1746544668490,150.0,0.00019918,7]
[360086366,1746544682186,200362.71275148,0.0003,30]
[360086367,1746544682216,207753.00724852,0.0003,30]
[360086368,1746544690551,198.0,0.000195,2]
[360086369,1746544701263,198.0,0.0002,5]
[360086370,1746544716898,198.0,0.0003,30]
[360086371,1746544774139,198.0,0.0002,5]
[360086372,1746544777555,150.0,1e-08,2]
[360086373,1746544807408,173.56,0.00019178,2]
[360086374,1746544818658,1263.26,0.0001888,2]
[360086375,1746544855402,150.0,0.00018868,2]
[360086376,1746544896935,200.0,0.00018933,2]
[360086377,1746544900602,299.99,0.00019734,7]
[360086378,1746545015848,164.52,0.0001944,2]
[360086379,1746545127636,1200.12345402,0.00011,2]
[360086380,1746545140979,13334.01,0.000198,5]
[360086381,1746545151240,150.0,0.00030137,120]
[360086382,1746545166714,993.0133227,8e-05,2]
[360086383,1746545171623,1190.36,0.00018933,2]
[360086384,1746545179156,1000.0,0.00018792,2]
[360086385,1746545188505,1979.59349065,0.00015,2]
[360086386,1746545222319,627.07,0.00018933,2]
[360086387,1746545232094,-293.71801786,0.000196,2]
[360086388,1746545239891,-163.4923076,0.000196,2]
[360086389,1746545270740,8000.0,0.0001,2]
[360086391,1746545290192,549.3,0.00018786,2]
[360086399,1746545301105,379.03487139,7.888e-05,2]
[360086400,1746545314358,2198.59100381,0.0001421,7]
[360086401,1746545316661,344.93118608,0.0001901,7]
[360086404,1746545392810,456.37,0.00018933,2]
[360086417,1746545432386,-599.67561292,0.000196,2]
[360086418,1746545432396,-200.0,0.000196,2]
[360086419,1746545432406,-200.0,0.000196,2]
[360086420,1746545432415,-150.27436708,0.000196,2]
[360086421,1746545432427,-138.33038745,0.000196,2]
[360086422,1746545432437,-200.0,0.00019644,2]
[360086423,1746545432447,-200.0,0.00019646,2]
[360086424,1746545432456,-151.0,0.00019688,2]
[360086425,1746545432466,-152.33811959,0.00019688,2]
[360086426,1746545432476,-158.33236296,0.00019688,2]
[360086427,1746545432488,-49.06763704,0.00019688,2]
[360086428,1746545432497,-668.65185757,0.00019688,2]
[360086429,1746545432507,-1037.58050539,0.00019697,2]
[360086430,1746545432523,-162.41949461,0.00019697,2]
[360086431,1746545432533,-300.0,0.00019697,2]
[360086432,1746545432542,-3938.4148941,0.00019698,2]
[360086433,1746545432552,-1056.88593837,0.00019699,2]
[360086434,1746545432561,-3938.37,0.00019699,2]
[360086435,1746545432571,-5777.95880076,0.000197,2]
[360086436,1746545432582,-641.60804426,0.000197,2]
[360086437,1746545432594,-317.65474495,0.000197,2]
[360086438,1746545432605,-1998.00196194,0.000197,2]
[360086472,1746545433312,749.97,0.00018933,2]
[360086479,1746545438259,-2177.58893885,0.000197,2]
[360086480,1746545438270,-560.21575986,0.000197,2]
[360086481,1746545438493,-8218.82174938,0.000197,2]
[360086482,1746545438503,-666.0,0.00019722,2]
[360086483,1746545438513,-150.0,0.00019729,2]
[360086484,1746545438523,-150.0,0.00019733,2]
[360086485,1746545438532,-150.0,0.00019738,2]
[360086486,1746545438542,-150.0,0.00019747,2]
[360086487,1746545438551,-1074.0,0.0001975,2]
[360086488,1746545438561,-150.0,0.00019756,2]
[360086489,1746545438570,-150.0,0.00019757,2]
[360086490,1746545438579,-150.0,0.00019765,2]
[360086491,1746545438589,-171.24226205,0.00019767,2]
[360086492,1746545438598,-150.0,0.00019789,2]
[360086493,1746545438607,-150.0,0.0001979,2]
[360086494,1746545438616,-150.0,0.00019793,2]
[360086495,1746545438625,-150.0,0.00019794,2]
[360086496,1746545438634,-500.0,0.00019799,2]
[360086497,1746545438643,-110.58899133,0.00019799,2]
[360086665,1746545440523,-389.41100867,0.00019799,2]
[360086667,1746545440533,-47.2809937,0.00019799,2]
[360086669,1746545440544,-452.7190063,0.00019799,2]
[360086671,1746545440556,-500.0,0.00019799,2]
[360086673,1746545440565,-500.0,0.00019799,2]
[360086676,1746545440576,-500.0,0.00019799,2]
[360086678,1746545440586,-500.0,0.00019799,2]
[360086680,1746545440595,-500.0,0.00019799,2]
[360086681,1746545440605,-500.0,0.00019799,2]
[360086684,1746545440615,-478.64864,0.00019799,2]
[360086685,1746545440625,-500.0,0.00019799,2]
[360086687,1746545440634,-500.0,0.00019799,2]
[360086689,1746545440644,-500.0,0.00019799,2]
[360086692,1746545440653,-248.16971228,0.00019799,2]
[360086693,1746545440663,-477.24306015,0.00019799,2]
[360086696,1746545440674,-22.75693985,0.00019799,2]
[360086698,1746545440683,-450.98183305,0.000198,5]
[360086700,1746545440694,-932.75999999,0.000198,5]
[360086702,1746545440708,-173940.39439724,0.000198,5]
[360086704,1746545440717,-168.88878199,0.000198,2]
[360086706,1746545440726,-150.0,0.00019801,2]
[360086708,1746545440735,-150.0,0.00019803,2]
[360086710,1746545440745,-150.0,0.0001981,2]
[360086712,1746545440755,-150.0,0.00019813,2]
[360086714,1746545440764,-12500.0,0.00019821,2]
[360086716,1746545440773,-11631.60888028,0.0001983,2]
[360086718,1746545440785,-868.39111972,0.0001983,2]
[360086720,1746545440794,-150.0,0.00019835,2]
[360086722,1746545440804,-150.0,0.00019838,2]
[360086724,1746545440813,-705.57441458,0.00019838,2]
[360086727,1746545440830,-11794.42558542,0.00019838,2]
[360086729,1746545440839,-150.0,0.00019842,2]
[360086731,1746545440848,-12500.0,0.00019847,2]
[360086733,1746545440857,-150.0,0.0001985,2]
[360086735,1746545440867,-155.975766,0.00019852,2]
[360086737,1746545440876,-158.175027,0.00019852,2]
[360086739,1746545440886,-651.976503,0.00019852,2]
[360086741,1746545440895,-150.0,0.00019853,2]
[360086743,1746545440904,-12500.0,0.00019856,2]
[360086745,1746545440913,-12500.0,0.00019865,2]
[360086747,1746545440922,-150.0,0.00019872,2]
[360086749,1746545440932,-150.0,0.00019872,2]
[360086751,1746545440941,-500.0,0.00019873,2]
[360086753,1746545440950,-500.0,0.00019873,2]
[360086755,1746545440964,-500.91070348,0.00019873,2]
[360086757,1746545440973,-500.0,0.00019873,2]
[360086759,1746545440983,-450.0,0.00019873,2]
[360086761,1746545440992,-915.37,0.00019873,2]
[360086763,1746545441003,-450.0,0.00019873,2]
[360086765,1746545441013,-490.0,0.00019873,2]
[360086767,1746545441022,-12500.0,0.00019874,2]
[360086769,1746545441033,-150.0,0.00019878,2]
[360086771,1746545441043,-450.0,0.00019879,2]
[360086773,1746545441055,-450.0,0.00019879,2]
[360086775,1746545441064,-67059.30500722,0.0001988,2]
[360086777,1746545441073,-150.0,0.00019881,2]
[360086779,1746545441082,-12500.0,0.00019882,2]
[360086781,1746545441092,-12500.0,0.00019882,2]
[360086783,1746545441101,-150.0,0.00019887,2]
[360086786,1746545441121,-150.0,0.00019888,2]
[360086788,1746545441130,-12500.0,0.00019891,2]
[360086790,1746545441140,-12500.0,0.00019891,2]
[360086792,1746545441149,-944.51,0.00019898,2]
[360086794,1746545441159,-150.0,0.00019899,2]
[360086796,1746545441168,-177.61409827,0.00019899,2]
[360086798,1746545441178,-2658.95581054,0.00019899,2]
[360086800,1746545441187,-185.50252633,0.00019899,2]
[360086802,1746545441196,-500.0,0.00019899,2]
[360086804,1746545441205,-500.0,0.00019899,2]
[360086806,1746545441214,-375.44300826,0.00019899,2]
[360086808,1746545441223,-12500.0,0.000199,2]
[360086810,1746545441232,-54868.98190497,0.000199,2]
[360086812,1746545441241,-12500.0,0.000199,2]
[360086814,1746545441250,-168.88878199,0.000199,2]
[360086816,1746545441259,-414.0586643,0.000199,2]
[360086818,1746545441269,-9393.99946708,0.000199,2]
[360086820,1746545441278,-156.63736672,0.000199,2]
[360086822,1746545441287,-302.91634603,0.000199,2]
[360086824,1746545441296,-2728.82240515,0.000199,2]
[360086826,1746545441307,-150.0,0.00019901,2]
[360086828,1746545441316,-150.0,0.00019902,2]
[360086830,1746545441325,-150.0,0.00019903,2]
[360086832,1746545441334,-150.0,0.00019905,2]
[360086834,1746545441344,-150.0,0.00019906,2]
[360086836,1746545441354,-150.0,0.0001991,2]
[360086838,1746545441363,-450.0,0.00019914,2]
[360086840,1746545441372,-915.37,0.00019914,2]
[360086842,1746545441381,-150.0,0.00019915,2]
[360086844,1746545441391,-500.0,0.00019918,2]
[360086846,1746545441400,-150.0,0.00019919,2]
[360086848,1746545441409,-150.0,0.0001992,2]
[360086850,1746545441418,-150.0,0.00019921,2]
[360086852,1746545441428,-150.0,0.00019935,2]
[360086854,1746545441437,-150.0,0.00019941,2]
[360086856,1746545441446,-24919.28497112,0.0001995,2]
[360086858,1746545441455,-916.419,0.00019953,2]
[360086860,1746545441466,-150.0,0.00019958,2]
[360086862,1746545441475,-150.0,0.00019961,2]
[360086864,1746545441484,-173.62390811,0.00019962,2]
[360086866,1746545441493,-150.0,0.00019962,2]
[360086868,1746545441503,-150.0,0.00019968,2]
[360086870,1746545441513,-150.0,0.00019972,2]
[360086872,1746545441523,-651.976503,0.00019972,2]
[360086874,1746545441532,-500.0,0.00019973,2]
[360086876,1746545441542,-506.17685878,0.00019973,2]
[360086878,1746545441553,-500.0,0.00019973,2]
[360086880,1746545441563,-510.10530285,0.00019973,2]
[360086882,1746545441573,-500.0,0.00019973,2]
[360086884,1746545441583,-500.0,0.00019973,2]
[360086886,1746545441593,-150.0,0.00019979,2]
[360086888,1746545441602,-150.0,0.00019981,2]
[360086890,1746545441612,-150.0,0.00019983,2]
[360086892,1746545441622,-1283.1721134,0.00019986,2]
[360086894,1746545441631,-4845.2058142,0.00019986,2]
[360086896,1746545441641,-9442.489305,0.00019986,2]
[360086898,1746545441650,-53614.3946241,0.00019986,2]
[360086900,1746545441660,-177.75879269,0.00019989,2]
[360086902,1746545441670,-198.0,0.0001999,3]
[360086904,1746545441679,-193.2,0.0001999,3]
[360086906,1746545441689,-198.0,0.0001999,4]
[360086908,1746545441698,-198.0,0.0001999,3]
[360086910,1746545441707,-450.0,0.00019997,2]
[360086912,1746545441716,-450.0,0.00019997,2]
[360086914,1746545441726,-450.0,0.00019997,2]
[360086916,1746545441735,-450.0,0.00019997,2]
[360086918,1746545441745,-242.47397953,0.00019997,2]
[360086920,1746545441755,-450.0,0.00019997,2]
[360086922,1746545441764,-450.0,0.00019997,2]
[360086924,1746545441773,-450.0,0.00019997,2]
[360086926,1746545441783,-450.0,0.00019997,2]
[360086928,1746545441792,-450.0,0.00019997,2]
[360086930,1746545441803,-450.0,0.00019997,2]
[360086932,1746545441813,-173.06,0.00019997,2]
[360086934,1746545441822,-525.54,0.00019997,2]
[360086936,1746545441831,-581.80402218,0.00019997,2]
[360086938,1746545441841,-565.28,0.00019997,2]
[360086940,1746545441850,-450.0,0.00019997,2]
[360086942,1746545441859,-165.31372773,0.00019997,2]
[360086944,1746545441869,-450.0,0.00019997,2]
[360086946,1746545441878,-450.0,0.00019997,2]
[360086948,1746545441888,-22085.6,0.00019997,2]
[360086950,1746545441898,-450.0,0.00019997,2]
[360086952,1746545441908,-450.0,0.00019997,2]
[360086954,1746545441917,-769.85,0.00019997,2]
[360086956,1746545441927,-500.0,0.00019997,2]
[360086958,1746545441936,-450.0,0.00019997,2]
[360086960,1746545441945,-450.0,0.00019997,2]
[360086962,1746545441955,-450.0,0.00019997,2]
[360086964,1746545441969,-450.0,0.00019997,2]
[360086966,1746545441978,-450.0,0.00019997,2]
[360086968,1746545441988,-450.0,0.00019997,2]
[360086970,1746545441997,-450.0,0.00019997,2]
[360086972,1746545442007,-450.0,0.00019997,2]
[360086974,1746545442017,-450.0,0.00019997,2]
[360086976,1746545442027,-275.37,0.00019997,2]
[360086978,1746545442037,-450.0,0.00019997,2]
[360086980,1746545442048,-450.0,0.00019997,2]
[360086982,1746545442059,-450.0,0.00019997,2]
[360086984,1746545442068,-450.0,0.00019997,2]
[360086986,1746545442078,-658.95,0.00019997,2]
[360086988,1746545442087,-511.02,0.00019997,2]
[360086990,1746545442097,-450.0,0.00019997,2]
[360086992,1746545442106,-450.0,0.00019997,2]
[360086994,1746545442115,-492.71,0.00019997,2]
[360086996,1746545442125,-691.09,0.00019997,2]
[360086998,1746545442135,-450.0,0.00019997,2]
[360087000,1746545442144,-450.0,0.00019997,2]
[360087002,1746545442153,-4541.41,0.00019997,2]
[360087004,1746545442162,-450.0,0.00019997,2]
[360087006,1746545442172,-450.0,0.00019997,2]
[360087008,1746545442182,-877.62,0.00019997,2]
[360087010,1746545442191,-450.0,0.00019997,2]
[360087012,1746545442200,-450.0,0.00019997,2]
[360087014,1746545442210,-450.0,0.00019997,2]
[360087016,1746545442219,-585.06,0.00019997,2]
[360087018,1746545442228,-450.0,0.00019997,2]
[360087020,1746545442238,-450.0,0.00019997,2]
[360087022,1746545442248,-422.06158133,0.00019998,2]
[360087024,1746545442258,-450.0,0.00019998,2]
[360087027,1746545442267,-450.0,0.00019998,2]
[360087028,1746545442277,-293.16681296,0.00019998,2]
[360087030,1746545442286,-450.0,0.00019998,2]
[360087032,1746545442295,-450.0,0.00019998,2]
[360087035,1746545442306,-450.0,0.00019998,2]
[360087037,1746545442316,-450.0,0.00019998,2]
[360087039,1746545442325,-450.0,0.00019998,2]
[360087040,1746545442335,-450.0,0.00019998,2]
[360087043,1746545442344,-450.0,0.00019998,2]
[360087045,1746545442354,-450.0,0.00019998,2]
[360087047,1746545442363,-450.0,0.00019998,2]
[360087048,1746545442373,-450.0,0.00019998,2]
[360087050,1746545442382,-450.0,0.00019998,2]
[360087052,1746545442392,-450.0,0.00019998,2]
[360087054,1746545442401,-450.0,0.00019998,2]
[360087056,1746545442411,-450.0,0.00019998,2]
[360087058,1746545442420,-450.0,0.00019998,2]
[360087060,1746545442430,-450.0,0.00019998,2]
[360087062,1746545442439,-450.0,0.00019998,2]
[360087064,1746545442448,-450.0,0.00019998,2]
[360087066,1746545442457,-450.0,0.00019998,2]
[360087068,1746545442466,-450.0,0.00019998,2]
[360087070,1746545442476,-450.0,0.00019998,2]
[360087072,1746545442485,-450.0,0.00019998,2]
[360087074,1746545442495,-450.0,0.00019998,2]
[360087076,1746545442504,-450.0,0.00019998,2]
[360087078,1746545442514,-450.0,0.00019998,2]
[360087080,1746545442523,-450.0,0.00019998,2]
[360087082,1746545442532,-450.0,0.00019998,2]
[360087083,1746545442542,-450.0,0.00019998,2]
[360087084,1746545442552,-450.0,0.00019998,2]